fUST/lending_fUST_20250217
["ID","MTS","AMOUNT","RATE_DAILY","PERIOD"]
[353281095,1739739042319,-500.0,8.301e-05,2]
[353281096,1739739042328,-1088.61,8.301e-05,2]
[353281097,1739739042337,-500.0,8.301e-05,2]
[353281098,1739739042346,-500.0,8.301e-05,2]
[353281099,1739739042355,-610.18,8.301e-05,2]
[353281100,1739739042364,-1448.08,8.301e-05,2]
[353281101,1739739042373,-500.0,8.301e-05,2]
[353281102,1739739042382,-500.0,8.301e-05,2]
[353281108,1739739042391,-500.0,8.301e-05,2]
[353281110,1739739042481,-500.0,8.301e-05,2]
[353281112,1739739042490,-500.0,8.301e-05,2]
[353281114,1739739042500,-500.0,8.301e-05,2]
[353281116,1739739042509,-500.0,8.301e-05,2]
[353281118,1739739042519,-502.33790019,8.301e-05,2]
[353281120,1739739042528,-500.68158614,8.301e-05,2]
[353281122,1739739042537,-500.0,8.301e-05,2]
[353281124,1739739042546,-673.09,8.301e-05,2]
[353281127,1739739042555,-260.44724227,8.301e-05,2]
[353281131,1739739042565,-2476.72,8.301e-05,2]
[353281133,1739739042574,-500.0,8.301e-05,2]
[353281136,1739739042585,-500.0,8.301e-05,2]
[353281139,1739739042594,-500.0,8.301e-05,2]
[353281142,1739739042603,-500.0,8.301e-05,2]
[353281145,1739739042613,-501.71054458,8.301e-05,2]
[353281149,1739739042622,-642.93,8.301e-05,2]
[353281153,1739739042632,-1127.54,8.301e-05,2]
[353281156,1739739042641,-440.27,8.301e-05,2]
[353281159,1739739042650,-527.62,8.301e-05,2]
[353281162,1739739042659,-500.0,8.301e-05,2]
[353281165,1739739042668,-500.0,8.301e-05,2]
[353281168,1739739042678,-500.0,8.301e-05,2]
[353281172,1739739042687,-500.0,8.301e-05,2]
[353281176,1739739042696,-500.0,8.301e-05,2]
[353281180,1739739042705,-774.76,8.301e-05,2]
[353281183,1739739042715,-500.0,8.301e-05,2]
[353281186,1739739042724,-500.0,8.301e-05,2]
[353281189,1739739042733,-500.0,8.301e-05,2]
[353281193,1739739042743,-500.0,8.301e-05,2]
[353281196,1739739042753,-500.0,8.301e-05,2]
[353281201,1739739042763,-500.0,8.301e-05,2]
[353281205,1739739042773,-500.0,8.301e-05,2]
[353281209,1739739042782,-500.0,8.301e-05,2]
[353281213,1739739042792,-500.0,8.301e-05,2]
[353281217,1739739042802,-500.0,8.301e-05,2]
[353281221,1739739042811,-197.58,8.301e-05,2]
[353281225,1739739042820,-187.505,8.356e-05,2]
[353281229,1739739042830,-150.0,8.356e-05,2]
[353281232,1739739042839,-153.0,8.36e-05,2]
[353281235,1739739042849,-153.0,8.36e-05,2]
[353281238,1739739042858,-355.0671123,8.36e-05,2]
[353281241,1739739042867,-153.0,8.36e-05,2]
[353281244,1739739042877,-154.9877685,8.36e-05,2]
[353281248,1739739042890,-153.0,8.36e-05,2]
[353281252,1739739042899,-153.0,8.36e-05,2]
[353281256,1739739042908,-215.860309,8.36e-05,2]
[353281260,1739739042919,-154.6992002,8.36e-05,2]
[353281265,1739739042929,-355.0671123,8.36e-05,2]
[353281269,1739739042938,-154.6992002,8.36e-05,2]
[353281273,1739739042948,-362.0499117,8.36e-05,2]
[353281277,1739739042958,-153.0,8.36e-05,2]
[353281281,1739739042971,-154.5357792,8.36e-05,2]
[353281285,1739739042980,-355.0671123,8.36e-05,2]
[353281289,1739739042990,-153.0,8.36e-05,2]
[353281293,1739739042999,-306.0,8.36e-05,2]
[353281297,1739739043009,-153.0,8.36e-05,2]
[353281301,1739739043018,-432.8989596,8.36e-05,2]
[353281305,1739739043027,-153.0,8.36e-05,2]
[353281308,1739739043036,-153.0,8.36e-05,2]
[353281311,1739739043045,-355.0671123,8.36e-05,2]
[353281313,1739739043056,-154.519,8.364e-05,2]
[353281316,1739739043065,-283.48868724,8.382e-05,2]
[353281319,1739739043075,-500.0,8.383e-05,2]
[353281323,1739739043086,-500.0,8.383e-05,2]
[353281327,1739739043096,-500.0,8.383e-05,2]
[353281331,1739739043105,-958.48,8.383e-05,2]
[353281335,1739739043116,-551.78,8.383e-05,2]
[353281339,1739739043125,-500.0,8.383e-05,2]
[353281344,1739739043135,-500.0,8.383e-05,2]
[353281348,1739739043144,-500.0,8.383e-05,2]
[353281352,1739739043154,-1425.5,8.383e-05,2]
[353281356,1739739043164,-1481.78,8.383e-05,2]
[353281360,1739739043173,-500.0,8.383e-05,2]
[353281363,1739739043182,-552.33,8.383e-05,2]
[353281367,1739739043192,-500.0,8.383e-05,2]
[353281372,1739739043201,-500.0,8.383e-05,2]
[353281375,1739739043211,-500.0,8.383e-05,2]
[353281380,1739739043220,-500.0,8.383e-05,2]
[353281384,1739739043229,-500.0,8.383e-05,2]
[353281388,1739739043239,-500.0,8.383e-05,2]
[353281392,1739739043248,-1256.46,8.383e-05,2]
[353281396,1739739043258,-701.26,8.383e-05,2]
[353281399,1739739043267,-500.0,8.383e-05,2]
[353281402,1739739043277,-500.0,8.383e-05,2]
[353281405,1739739043286,-500.0,8.383e-05,2]
[353281407,1739739043295,-500.0,8.383e-05,2]
[353281411,1739739043305,-500.0,8.383e-05,2]
[353281415,1739739043314,-500.0,8.383e-05,2]
[353281421,1739739043324,-646.25,8.383e-05,2]
[353281424,1739739043336,-500.0,8.383e-05,2]
[353281428,1739739043345,-500.0,8.383e-05,2]
[353281432,1739739043354,-1568.22,8.383e-05,2]
[353281437,1739739043364,-500.0,8.383e-05,2]
[353281439,1739739043373,-500.0,8.383e-05,2]
[353281442,1739739043382,-500.0,8.383e-05,2]
[353281447,1739739043391,-500.0,8.383e-05,2]
[353281451,1739739043401,-500.0,8.383e-05,2]
[353281455,1739739043410,-500.0,8.383e-05,2]
[353281459,1739739043419,-500.0,8.383e-05,2]
[353281463,1739739043429,-218.76,8.383e-05,2]
[353281467,1739739043438,-3619.7,8.383e-05,2]
[353281470,1739739043447,-500.0,8.383e-05,2]
[353281473,1739739043457,-600.77,8.383e-05,2]
[353281476,1739739043466,-500.0,8.383e-05,2]
[353281479,1739739043476,-1020.66,8.383e-05,2]
[353281482,1739739043486,-500.0,8.383e-05,2]
[353281485,1739739043496,-518.15,8.383e-05,2]
[353281488,1739739043505,-500.0,8.383e-05,2]
[353281491,1739739043515,-1078.73,8.383e-05,2]
[353281494,1739739043524,-10902.67,8.383e-05,2]
[353281498,1739739043534,-3362.22,8.383e-05,2]
[353281501,1739739043543,-500.0,8.383e-05,2]
[353281504,1739739043552,-500.0,8.383e-05,2]
[353281507,1739739043562,-507.61,8.383e-05,2]
[353281511,1739739043571,-1674.43,8.383e-05,2]
[353281515,1739739043581,-828.03,8.383e-05,2]
[353281518,1739739043591,-500.0,8.383e-05,2]
[353281521,1739739043599,-2336.68,8.383e-05,2]
[353281524,1739739043609,-865.89,8.383e-05,2]
[353281527,1739739043618,-500.0,8.383e-05,2]
[353281530,1739739043628,-2622.68,8.383e-05,2]
[353281532,1739739043637,-500.0,8.383e-05,2]
[353281534,1739739043646,-640.59,8.383e-05,2]
[353281536,1739739043656,-500.0,8.383e-05,2]
[353281538,1739739043665,-500.0,8.383e-05,2]
[353281540,1739739043675,-1641.24,8.383e-05,2]
[353281542,1739739043684,-1198.59,8.383e-05,2]
[353281544,1739739043694,-784.71,8.383e-05,2]
[353281546,1739739043704,-933.14,8.383e-05,2]
[353281548,1739739043713,-2705.35,8.383e-05,2]
[353281550,1739739043722,-500.0,8.383e-05,2]
[353281552,1739739043731,-11751.59,8.383e-05,2]
[353281554,1739739043741,-5127.51,8.383e-05,2]
[353281556,1739739043750,-500.0,8.383e-05,2]
[353281558,1739739043760,-2086.25,8.383e-05,2]
[353281560,1739739043769,-24067.87,8.383e-05,2]
[353281562,1739739043779,-620.59,8.383e-05,2]
[353281564,1739739043788,-1291.51,8.383e-05,2]
[353281566,1739739043798,-1088.61,8.383e-05,2]
[353281568,1739739043807,-1448.08,8.383e-05,2]
[353281570,1739739043816,-500.0,8.383e-05,2]
[353281572,1739739043825,-500.0,8.383e-05,2]
[353281574,1739739043836,-500.0,8.383e-05,2]
[353281577,1739739043845,-673.09,8.383e-05,2]
[353281579,1739739043854,-2476.72,8.383e-05,2]
[353281581,1739739043863,-500.0,8.383e-05,2]
[353281583,1739739043873,-500.0,8.383e-05,2]
[353281585,1739739043886,-642.93,8.383e-05,2]
[353281595,1739739043974,-1127.54,8.383e-05,2]
[353281597,1739739043984,-500.0,8.383e-05,2]
[353281599,1739739043994,-320.18,8.383e-05,2]
[353281601,1739739044004,-774.76,8.383e-05,2]
[353281603,1739739044013,-500.0,8.383e-05,2]
[353281605,1739739044023,-425.12980911,8.465e-05,2]
[353281607,1739739044032,-500.0,8.465e-05,2]
[353281609,1739739044041,-500.0,8.465e-05,2]
[353281611,1739739044051,-958.48,8.465e-05,2]
[353281613,1739739044060,-551.78,8.465e-05,2]
[353281615,1739739044070,-500.0,8.465e-05,2]
[353281617,1739739044079,-500.0,8.465e-05,2]
[353281618,1739739044088,-500.0,8.465e-05,2]
[353281619,1739739044097,-1425.5,8.465e-05,2]
[353281620,1739739044106,-1481.78,8.465e-05,2]
[353281621,1739739044115,-500.0,8.465e-05,2]
[353281622,1739739044125,-552.33,8.465e-05,2]
[353281623,1739739044135,-500.0,8.465e-05,2]
[353281624,1739739044144,-500.0,8.465e-05,2]
[353281625,1739739044154,-500.0,8.465e-05,2]
[353281626,1739739044164,-500.0,8.465e-05,2]
[353281627,1739739044173,-500.0,8.465e-05,2]
[353281628,1739739044183,-500.0,8.465e-05,2]
[353281630,1739739044193,-1256.46,8.465e-05,2]
[353281632,1739739044203,-701.26,8.465e-05,2]
[353281634,1739739044212,-500.0,8.465e-05,2]
[353281636,1739739044222,-500.0,8.465e-05,2]
[353281638,1739739044231,-589.21984902,8.465e-05,2]
[353281640,1739739044241,-500.0,8.465e-05,2]
[353281642,1739739044250,-590.47701257,8.465e-05,2]
[353281644,1739739044259,-500.0,8.465e-05,2]
[353281646,1739739044268,-646.25,8.465e-05,2]
[353281648,1739739044278,-500.0,8.465e-05,2]
[353281650,1739739044288,-500.0,8.465e-05,2]
[353281653,1739739044297,-1568.22,8.465e-05,2]
[353281655,1739739044307,-500.0,8.465e-05,2]
[353281657,1739739044316,-500.0,8.465e-05,2]
[353281659,1739739044325,-500.0,8.465e-05,2]
[353281661,1739739044335,-500.0,8.465e-05,2]
[353281663,1739739044344,-500.0,8.465e-05,2]
[353281665,1739739044354,-500.0,8.465e-05,2]
[353281667,1739739044363,-500.0,8.465e-05,2]
[353281669,1739739044373,-3619.7,8.465e-05,2]
[353281671,1739739044382,-500.0,8.465e-05,2]
[353281673,1739739044391,-600.77,8.465e-05,2]
[353281675,1739739044400,-500.0,8.465e-05,2]
[353281676,1739739044409,-1020.66,8.465e-05,2]
[353281679,1739739044418,-500.0,8.465e-05,2]
[353281681,1739739044428,-518.15,8.465e-05,2]
[353281683,1739739044437,-500.0,8.465e-05,2]
[353281685,1739739044446,-1078.73,8.465e-05,2]
[353281686,1739739044455,-10902.67,8.465e-05,2]
[353281689,1739739044465,-3362.22,8.465e-05,2]
[353281691,1739739044474,-500.0,8.465e-05,2]
[353281693,1739739044483,-507.61,8.465e-05,2]
[353281695,1739739044493,-1674.43,8.465e-05,2]
[353281697,1739739044502,-828.03,8.465e-05,2]
[353281699,1739739044511,-500.0,8.465e-05,2]
[353281701,1739739044520,-2336.68,8.465e-05,2]
[353281703,1739739044529,-865.89,8.465e-05,2]
[353281705,1739739044539,-500.0,8.465e-05,2]
[353281707,1739739044548,-2622.68,8.465e-05,2]
[353281709,1739739044558,-500.0,8.465e-05,2]
[353281711,1739739044567,-640.59,8.465e-05,2]
[353281713,1739739044576,-500.0,8.465e-05,2]
[353281715,1739739044586,-500.0,8.465e-05,2]
[353281717,1739739044596,-1641.24,8.465e-05,2]
[353281719,1739739044605,-1198.59,8.465e-05,2]
[353281721,1739739044614,-784.71,8.465e-05,2]
[353281723,1739739044624,-933.14,8.465e-05,2]
[353281725,1739739044634,-2705.35,8.465e-05,2]
[353281727,1739739044643,-500.0,8.465e-05,2]
[353281729,1739739044653,-11751.59,8.465e-05,2]
[353281731,1739739044662,-5127.51,8.465e-05,2]
[353281733,1739739044671,-462.88588621,8.465e-05,2]
[353281735,1739739044680,-24067.87,8.465e-05,2]
[353281737,1739739044690,-620.59,8.465e-05,2]
[353281739,1739739044700,-2086.25,8.465e-05,2]
[353281741,1739739044709,-1291.51,8.465e-05,2]
[353281743,1739739044719,-1088.61,8.465e-05,2]
[353281745,1739739044728,-1448.08,8.465e-05,2]
[353281747,1739739044738,-500.0,8.465e-05,2]
[353281749,1739739044747,-500.0,8.465e-05,2]
[353281751,1739739044756,-500.0,8.465e-05,2]
[353281753,1739739044766,-673.09,8.465e-05,2]
[353281755,1739739044775,-2476.72,8.465e-05,2]
[353281757,1739739044785,-500.0,8.465e-05,2]
[353281759,1739739044795,-500.0,8.465e-05,2]
[353281761,1739739044805,-642.93,8.465e-05,2]
[353281763,1739739044814,-1127.54,8.465e-05,2]
[353281765,1739739044823,-500.0,8.465e-05,2]
[353281767,1739739044833,-774.76,8.465e-05,2]
[353281769,1739739044843,-500.0,8.465e-05,2]
[353281771,1739739044852,-153.0,8.466e-05,2]
[353281773,1739739044862,-154.666516,8.466e-05,2]
[353281775,1739739044873,-215.2109463,8.466e-05,2]
[353281777,1739739044888,-154.6992002,8.466e-05,2]
[353281779,1739739044899,-163.49224991,8.466e-05,2]
[353281798,1739739045072,-52.38771489,8.466e-05,2]
[353281800,1739739045083,-154.6992002,8.466e-05,2]
[353281802,1739739045092,-141.17687891,8.466e-05,2]
[353281804,1739739045103,-13.52232129,8.466e-05,2]
[353281815,1739739045198,-154.6992002,8.466e-05,2]
[353281817,1739739045208,-154.6992002,8.466e-05,2]
[353281819,1739739045218,-2865.7885233,8.54e-05,2]
[353281821,1739739045228,-277.52734824,8.547e-05,2]
[353281823,1739739045238,-500.0,8.547e-05,2]
[353281825,1739739045247,-900.60254082,8.547e-05,2]
[353281828,1739739045258,-57.87745918,8.547e-05,2]
[353281830,1739739045267,-551.78,8.547e-05,2]
[353281832,1739739045277,-500.0,8.547e-05,2]
[353281834,1739739045287,-500.0,8.547e-05,2]
[353281836,1739739045296,-500.0,8.547e-05,2]
[353281838,1739739045305,-1103.42827653,8.547e-05,2]
[353281841,1739739045324,-500.0,8.219e-05,2]
[353281843,1739739045334,-322.07172347,8.547e-05,2]
[353281845,1739739045343,-1481.78,8.547e-05,2]
[353281847,1739739045353,-500.0,8.547e-05,2]
[353281849,1739739045363,-552.33,8.547e-05,2]
[353281851,1739739045372,-500.0,8.547e-05,2]
[353281853,1739739045382,-500.0,8.547e-05,2]
[353281855,1739739045391,-500.0,8.547e-05,2]
[353281857,1739739045401,-500.0,8.547e-05,2]
[353281859,1739739045411,-500.0,8.547e-05,2]
[353281861,1739739045420,-575.47900022,8.547e-05,2]
[353281863,1739739045430,-1256.46,8.547e-05,2]
[353281865,1739739045440,-701.26,8.547e-05,2]
[353281867,1739739045449,-500.0,8.547e-05,2]
[353281869,1739739045458,-548.60922957,8.547e-05,2]
[353281871,1739739045468,-500.0,8.547e-05,2]
[353281873,1739739045478,-500.0,8.547e-05,2]
[353281875,1739739045486,-646.25,8.547e-05,2]
[353281877,1739739045496,-500.0,8.547e-05,2]
[353281879,1739739045505,-500.0,8.547e-05,2]
[353281881,1739739045514,-1568.22,8.547e-05,2]
[353281883,1739739045524,-500.0,8.547e-05,2]
[353281885,1739739045534,-500.0,8.547e-05,2]
[353281888,1739739045544,-500.0,8.547e-05,2]
[353281890,1739739045553,-500.0,8.547e-05,2]
[353281892,1739739045563,-500.0,8.547e-05,2]
[353281894,1739739045572,-500.0,8.547e-05,2]
[353281895,1739739045582,-500.0,8.547e-05,2]
[353281898,1739739045592,-3619.7,8.547e-05,2]
[353281900,1739739045602,-500.0,8.547e-05,2]
[353281902,1739739045612,-600.77,8.547e-05,2]
[353281903,1739739045621,-500.0,8.547e-05,2]
[353281905,1739739045631,-1020.66,8.547e-05,2]
[353281908,1739739045641,-500.0,8.547e-05,2]
[353281910,1739739045651,-518.15,8.547e-05,2]
[353281912,1739739045661,-500.0,8.547e-05,2]
[353281914,1739739045670,-1078.73,8.547e-05,2]
[353281916,1739739045679,-10902.67,8.547e-05,2]
[353281918,1739739045689,-3362.22,8.547e-05,2]
[353281920,1739739045699,-500.0,8.547e-05,2]
[353281922,1739739045708,-507.61,8.547e-05,2]
[353281924,1739739045718,-1674.43,8.547e-05,2]
[353281926,1739739045727,-828.03,8.547e-05,2]
[353281927,1739739045736,-500.0,8.547e-05,2]
[353281928,1739739045746,-2336.68,8.547e-05,2]
[353281929,1739739045755,-865.89,8.547e-05,2]
[353281930,1739739045764,-500.0,8.547e-05,2]
[353281931,1739739045774,-2622.68,8.547e-05,2]
[353281932,1739739045783,-500.0,8.547e-05,2]
[353281933,1739739045794,-640.59,8.547e-05,2]
[353281934,1739739045803,-500.0,8.547e-05,2]
[353281935,1739739045812,-500.0,8.547e-05,2]
[353281936,1739739045821,-1641.24,8.547e-05,2]
[353281938,1739739045831,-1198.59,8.547e-05,2]
[353281941,1739739045840,-784.71,8.547e-05,2]
[353281944,1739739045850,-933.14,8.547e-05,2]
[353281947,1739739045859,-2705.35,8.547e-05,2]
[353281950,1739739045869,-500.0,8.547e-05,2]
[353281952,1739739045880,-11751.59,8.547e-05,2]
[353281954,1739739045890,-5127.51,8.547e-05,2]
[353281956,1739739045900,-14357.30224751,8.547e-05,2]
[353281958,1739739045913,-9710.56775249,8.547e-05,2]
[353281960,1739739045922,-620.59,8.547e-05,2]
[353281962,1739739045932,-2086.25,8.547e-05,2]
[353281964,1739739045942,-1291.51,8.547e-05,2]
[353281966,1739739045952,-1088.61,8.547e-05,2]
[353281968,1739739045964,-441.21385722,8.547e-05,2]
[353281971,1739739045977,-1006.86614278,8.547e-05,2]
[353281973,1739739045987,-500.0,8.547e-05,2]
[353281975,1739739045996,-500.0,8.547e-05,2]
[353281977,1739739046006,-673.09,8.547e-05,2]
[353281979,1739739046016,-500.0,8.547e-05,2]
[353281981,1739739046025,-2476.72,8.547e-05,2]
[353281983,1739739046034,-410.66,8.547e-05,2]
[353281985,1739739046044,-500.0,8.547e-05,2]
[353281987,1739739046053,-642.93,8.547e-05,2]
[353281989,1739739046063,-1127.54,8.547e-05,2]
[353281991,1739739046072,-500.0,8.547e-05,2]
[353281993,1739739046082,-774.76,8.547e-05,2]
[353281995,1739739046091,-500.0,8.547e-05,2]
[353281997,1739739046101,-500.0,8.63e-05,2]
[353281999,1739739046110,-958.48,8.63e-05,2]
[353282001,1739739046119,-551.78,8.63e-05,2]
[353282003,1739739046129,-500.0,8.63e-05,2]
[353282005,1739739046138,-500.0,8.63e-05,2]
[353282007,1739739046148,-500.0,8.63e-05,2]
[353282009,1739739046157,-1425.5,8.63e-05,2]
[353282011,1739739046167,-1481.78,8.63e-05,2]
[353282013,1739739046176,-380.90273082,8.63e-05,2]
[353282015,1739739046185,-552.33,8.63e-05,2]
[353282017,1739739046195,-500.0,8.63e-05,2]
[353282019,1739739046204,-500.0,8.63e-05,2]
[353282021,1739739046213,-500.0,8.63e-05,2]
[353282023,1739739046223,-500.0,8.63e-05,2]
[353282025,1739739046232,-500.0,8.63e-05,2]
[353282027,1739739046241,-1256.46,8.63e-05,2]
[353282029,1739739046251,-701.26,8.63e-05,2]
[353282031,1739739046260,-500.0,8.63e-05,2]
[353282033,1739739046269,-500.0,8.63e-05,2]
[353282035,1739739046279,-500.0,8.63e-05,2]
[353282037,1739739046288,-646.25,8.63e-05,2]
[353282039,1739739046299,-500.0,8.63e-05,2]
[353282041,1739739046308,-500.0,8.63e-05,2]
[353282043,1739739046318,-1568.22,8.63e-05,2]
[353282045,1739739046328,-500.0,8.63e-05,2]
[353282047,1739739046339,-500.0,8.63e-05,2]
[353282049,1739739046348,-500.0,8.63e-05,2]
[353282051,1739739046358,-500.0,8.63e-05,2]
[353282053,1739739046368,-500.0,8.63e-05,2]
[353282055,1739739046377,-500.0,8.63e-05,2]
[353282057,1739739046386,-500.0,8.63e-05,2]
[353282059,1739739046395,-3619.7,8.63e-05,2]
[353282070,1739739046405,-500.0,8.63e-05,2]
[353282072,1739739046494,-600.77,8.63e-05,2]
[353282074,1739739046504,-500.0,8.63e-05,2]
[353282076,1739739046513,-1020.66,8.63e-05,2]
[353282078,1739739046523,-500.0,8.63e-05,2]
[353282080,1739739046533,-518.15,8.63e-05,2]
[353282082,1739739046543,-500.0,8.63e-05,2]
[353282083,1739739046552,-1078.73,8.63e-05,2]
[353282085,1739739046562,-4309.0050606,8.63e-05,2]
[353282087,1739739046574,-992.81,8.63e-05,2]
[353282088,1739739046586,-515.3,8.63e-05,2]
[353282090,1739739046597,-1953.8058695,8.63e-05,2]
[353282112,1739739046945,-205.4267147,7.25e-05,2]
[353282114,1739739046955,-501.55291729,8.219e-05,2]
[353282115,1739739046966,-500.0,8.219e-05,2]
[353282117,1739739046975,-500.0,8.219e-05,2]
[353282119,1739739046985,-500.0,8.219e-05,2]
[353282120,1739739046994,-396.0,8.297e-05,2]
[353282122,1739739047005,-500.0,8.301e-05,2]
[353282124,1739739047014,-248.8516315,8.301e-05,2]
[353282125,1739739047023,-500.0,8.383e-05,2]
[353282127,1739739047033,-500.0,8.465e-05,2]
[353282129,1739739047043,-500.0,8.547e-05,2]
[353282130,1739739047055,-3131.7490699,8.63e-05,2]
[353282132,1739739047070,-3362.22,8.63e-05,2]
[353282134,1739739047079,-500.0,8.63e-05,2]
[353282135,1739739047090,-507.61,8.63e-05,2]
[353282137,1739739047099,-1674.43,8.63e-05,2]
[353282139,1739739047109,-828.03,8.63e-05,2]
[353282140,1739739047118,-500.0,8.63e-05,2]
[353282142,1739739047128,-2336.68,8.63e-05,2]
[353282144,1739739047138,-865.89,8.63e-05,2]
[353282145,1739739047148,-500.0,8.63e-05,2]
[353282147,1739739047157,-2622.68,8.63e-05,2]
[353282149,1739739047167,-500.0,8.63e-05,2]
[353282150,1739739047181,-640.59,8.63e-05,2]
[353282152,1739739047191,-500.0,8.63e-05,2]
[353282154,1739739047201,-500.0,8.63e-05,2]
[353282155,1739739047210,-1641.24,8.63e-05,2]
[353282157,1739739047219,-1198.59,8.63e-05,2]
[353282159,1739739047229,-302.03742294,8.63e-05,2]
[353282160,1739739047240,-482.67257706,8.63e-05,2]
[353282162,1739739047250,-933.14,8.63e-05,2]
[353282164,1739739047259,-2705.35,8.63e-05,2]
[353282165,1739739047268,-500.0,8.63e-05,2]
[353282167,1739739047278,-11751.59,8.63e-05,2]
[353282169,1739739047287,-2685.51245447,8.63e-05,2]
[353282203,1739739047923,-500.0,8.219e-05,2]
[353282205,1739739047933,-500.0,8.219e-05,2]
[353282207,1739739047943,-500.0,8.219e-05,2]
[353282209,1739739047953,-518.19188215,8.219e-05,2]
[353282211,1739739047963,-500.0,8.219e-05,2]
[353282213,1739739047973,-500.0,8.219e-05,2]
[353282215,1739739047983,-500.0,8.219e-05,2]
[353282217,1739739047992,-500.87367359,8.219e-05,2]
[353282219,1739739048002,-500.0,8.301e-05,2]
[353282221,1739739048011,-332.7026338,8.301e-05,2]
[353283894,1739739402833,1140.84,0.00019,120]
[353283895,1739739427203,1140.84,0.00019,120]
[353283943,1739740232597,-300.0,8.217e-05,2]
[353283945,1739740232607,-500.0,8.218e-05,2]
[353283947,1739740232617,-276.09273853,8.218e-05,2]
[353283949,1739740232627,-500.0,8.218e-05,2]
[353283951,1739740232637,-500.0,8.218e-05,2]
[353283953,1739740232647,-244.78017268,8.218e-05,2]
[353283955,1739740232657,-500.0,8.218e-05,2]
[353283957,1739740232667,-371.40600549,8.218e-05,2]
[353283960,1739740232677,-600.0,8.218e-05,2]
[353283962,1739740232686,-500.0,8.218e-05,2]
[353283964,1739740232696,-500.0,8.218e-05,2]
[353283968,1739740232706,-500.0,8.218e-05,2]
[353283970,1739740232715,-500.0,8.218e-05,2]
[353283972,1739740232725,-500.0,8.218e-05,2]
[353283974,1739740232735,-500.0,8.218e-05,2]
[353283976,1739740232745,-500.0,8.218e-05,2]
[353283978,1739740232754,-500.0,8.218e-05,2]
[353283979,1739740232764,-500.0,8.218e-05,2]
[353283982,1739740232773,-371.70967633,8.218e-05,2]
[353283984,1739740232783,-454.49316576,8.218e-05,2]
[353283986,1739740232792,-262.14830769,8.218e-05,2]
[353283987,1739740232802,-500.0,8.218e-05,2]
[353283988,1739740232811,-500.0,8.219e-05,2]
[353283990,1739740232820,-240.5343183,8.219e-05,2]
[353283992,1739740232830,-500.0,8.219e-05,2]
[353283994,1739740232839,-607.80798565,8.219e-05,2]
[353283996,1739740232849,-154.77990034,8.219e-05,2]
[353283998,1739740232858,-500.0,8.219e-05,2]
[353284000,1739740232867,-500.0,8.219e-05,2]
[353284002,1739740232877,-500.0,8.219e-05,2]
[353284004,1739740232886,-500.0,8.219e-05,2]
[353284007,1739740232896,-500.0,8.219e-05,2]
[353284009,1739740232906,-500.0,8.219e-05,2]
[353284011,1739740232916,-500.0,8.219e-05,2]
[353284013,1739740232925,-500.0,8.219e-05,2]
[353284015,1739740232934,-500.0,8.219e-05,2]
[353284017,1739740232943,-500.0,8.219e-05,2]
[353284019,1739740232953,-500.0,8.219e-05,2]
[353284021,1739740232962,-500.0,8.219e-05,2]
[353284023,1739740232971,-500.0,8.219e-05,2]
[353284025,1739740232980,-500.0,8.219e-05,2]
[353284026,1739740232989,-500.0,8.219e-05,2]
[353284028,1739740232999,-500.0,8.219e-05,2]
[353284031,1739740233008,-280.72749938,8.219e-05,2]
[353284032,1739740233018,-507.0558345,8.219e-05,2]
[353284035,1739740233028,-500.0,8.219e-05,2]
[353284036,1739740233037,-500.0,8.219e-05,2]
[353284038,1739740233047,-500.0,8.219e-05,2]
[353284040,1739740233056,-500.0,8.219e-05,2]
[353284042,1739740233066,-500.0,8.219e-05,2]
[353284044,1739740233075,-500.0,8.219e-05,2]
[353284046,1739740233085,-500.67774487,8.219e-05,2]
[353284048,1739740233095,-500.0,8.219e-05,2]
[353284050,1739740233104,-441.68445021,8.219e-05,2]
[353284052,1739740233113,-628.74476192,8.219e-05,2]
[353284054,1739740233123,-500.0,8.219e-05,2]
[353284057,1739740233133,-500.0,8.219e-05,2]
[353284059,1739740233143,-503.73460434,8.219e-05,2]